bitfinex/quotes_ETHUSD_20250616
["timestamp","ask_amount","ask_price","bid_price","bid_amount"]
[1750092426614,0.1896,2632.6,2632.5,3.79867046]
[1750092437127,1.68524382,2633.1,2632.9,3.79805272]
[1750092437446,0.1896,2633.4,2633.2,3.79759339]
[1750092437597,0.02,2633.9,2633.8,3.7967955]
[1750092437802,0.2096,2633.9,2633.8,11.8337955]
[1750092438036,0.2096,2633.9,2633.8,12.5863955]
[1750092440400,0.02,2633.9,2633.8,12.5863955]
[1750092441403,0.02,2633.9,2633.8,14.24368892]
[1750092441744,0.02,2633.9,2633.8,2.4516]
[1750092441947,0.02,2633.9,2633.8,12.5823955]
[1750092442544,0.02,2633.9,2633.8,8.7856]
[1750092442717,0.02,2633.9,2633.8,12.5823955]
[1750092443348,0.02,2633.9,2633.8,8.7856]
[1750092444177,0.02,2633.9,2633.8,0.7526]
[1750092444320,10.0,2633.6,2633.1,0.1896]
[1750092444519,0.1896,2633.5,2633.2,6.336]
[1750092444721,3.79740398,2633.4,2633.2,6.336]
[1750092445311,3.79730665,2633.5,2633.2,6.336]
[1750092445514,11.01896,2633.6,2633.2,6.336]
[1750092445848,3.79727973,2633.5,2633.2,6.336]
[1750092446053,14.8161139,2633.6,2633.2,6.336]
[1750092446254,13.7971539,2633.6,2633.2,6.336]
[1750092446450,13.7971539,2633.6,2632.9,1.685]
[1750092446451,0.1896,2633.3,2632.9,1.685]
[1750092446627,3.98717778,2633.3,2632.9,1.685]
[1750092446954,3.98717778,2633.3,2633.0,6.332]
[1750092447555,3.79775286,2633.2,2632.8,0.8283]
[1750092447762,0.1896,2633.0,2632.9,8.015]
[1750092447943,0.1896,2633.0,2632.9,1.685]
[1750092448150,0.1896,2633.0,2632.9,11.81209335]
[1750092448527,0.1896,2633.0,2632.9,14.25875398]
[1750092449065,0.1896,2633.3,2633.1,3.79779333]
[1750092449223,0.1896,2633.3,2633.2,10.93246064]
[1750092449423,0.1896,2633.6,2633.3,3.79749785]
[1750092449625,0.02,2633.9,2633.4,6.366971]
[1750092449827,0.02,2633.9,2633.8,4.6035955]
[1750092450138,0.02,2633.9,2633.8,10.9395955]
[1750092450341,0.02,2633.9,2633.8,2.2804514]
[1750092450570,0.2096,2633.9,2633.8,8.8278]
[1750092450995,0.2096,2633.9,2633.8,12.6245955]
[1750092451157,0.2096,2633.9,2633.8,4.6035955]
[1750092451356,0.2096,2633.9,2633.8,12.6235955]
[1750092451608,0.2096,2633.9,2633.8,14.26564898]
[1750092452718,0.2096,2633.9,2633.8,14.26464898]
[1750092453291,4.00634286,2633.9,2633.5,2.4784]
[1750092453602,0.02,2633.9,2633.6,6.332]
[1750092454226,0.02,2633.9,2633.6,10.12901361]
[1750092454524,0.02,2633.9,2633.7,3.79691086]
[1750092454724,0.02,2633.9,2633.8,6.331]
[1750092456416,10.02,2633.9,2633.8,6.331]
[1750092456618,0.02,2633.9,2633.8,6.331]
[1750092457625,0.02,2633.9,2633.5,3.79716372]
[1750092457971,0.1896,2633.7,2633.6,3.79708383]
[1750092458135,0.1896,2633.7,2633.6,8.008]
[1750092458319,0.1896,2633.7,2633.6,8.007]
[1750092458494,0.1896,2633.7,2633.5,3.79715242]
[1750092458695,0.1896,2633.7,2633.4,3.79731783]
[1750092458901,3.98660898,2633.7,2633.5,1.685]
[1750092459120,10.1896,2633.7,2633.6,6.32]
[1750092459334,10.1896,2633.7,2633.6,6.322]
[1750092460137,13.98666683,2633.7,2633.5,1.685]
[1750092460337,14.80946683,2633.7,2633.6,6.322]
[1750092460502,14.80946683,2633.7,2633.6,6.32]
[1750092460705,14.80946683,2633.7,2633.2,3.7976245]
[1750092461003,14.80943867,2633.7,2633.3,8.004]
[1750092461320,3.79712515,2633.6,2633.3,8.004]
[1750092462201,3.79712515,2633.6,2633.1,0.7855]
[1750092462202,0.1896,2633.3,2633.1,0.7855]
[1750092462401,0.1896,2633.3,2633.2,11.79966064]
[1750092462841,0.1896,2633.3,2633.2,8.002]
[1750092463004,0.1896,2633.3,2633.0,3.79786057]
[1750092463207,3.79723237,2633.5,2633.2,6.316]
[1750092463400,0.1896,2633.1,2633.0,3.79787142]
[1750092463633,0.1896,2633.1,2632.8,0.763]
[1750092463945,0.1896,2633.1,2632.9,1.685]
[1750092464101,0.1896,2633.1,2633.0,6.317]
[1750092465002,0.1896,2633.1,2633.0,10.1149491]
[1750092465667,0.1896,2633.1,2633.0,6.317]
[1750092466071,0.1896,2633.1,2633.0,10.1149491]
[1750092466232,0.1896,2633.1,2633.0,6.317]
[1750092466432,0.1896,2633.1,2633.0,6.312]
[1750092466632,0.1896,2633.1,2633.0,10.1099491]
[1750092466862,0.1896,2633.1,2633.0,6.312]
[1750092467027,0.1896,2633.1,2633.0,10.1099491]
[1750092467373,0.1896,2633.1,2633.0,11.83535927]
[1750092468335,0.1896,2633.1,2633.0,10.1099491]
[1750092470153,0.1896,2633.3,2633.2,3.79756014]
[1750092470355,0.02,2633.9,2633.8,3.7967955]
[1750092470579,0.02,2633.9,2633.8,10.1077955]
[1750092471696,0.02,2633.9,2633.8,21.03262792]
[1750092471854,0.02,2633.9,2633.8,24.52253295]
[1750092473360,0.02,2633.9,2633.8,7.28670053]
[1750092473586,0.02,2633.9,2633.8,15.27370053]
[1750092474562,0.02,2633.9,2633.8,8.95770053]
[1750092474796,0.02,2633.9,2633.8,15.27270053]
[1750092475718,0.02,2633.9,2633.8,15.82270053]
[1750092476183,0.02,2633.9,2633.8,16.20813127]
[1750092476783,0.02,2633.9,2633.8,16.20513127]
[1750092477244,0.02,2634.9,2634.8,3.79535448]
[1750092477443,0.02,2634.9,2634.8,12.56245448]
[1750092477719,0.02,2634.9,2634.8,2.420893]
[1750092477875,0.02,2634.9,2634.8,11.78335448]
[1750092481133,0.02,2634.9,2634.8,7.988]
[1750092481315,0.02,2634.9,2634.8,11.78335448]
[1750092481521,0.02,2634.9,2634.7,3.79541636]
[1750092481718,0.02,2634.9,2634.4,8.023]
[1750092481719,0.1896,2634.7,2634.5,3.79569341]
[1750092481907,3.81521886,2634.9,2634.6,6.31]
[1750092482224,5.37148775,2634.9,2634.6,6.31]
[1750092482634,5.37148775,2634.9,2634.4,13.48986438]
[1750092482635,3.79537974,2634.8,2634.4,8.023]
[1750092482837,0.1896,2634.6,2634.4,8.023]
[1750092483020,0.1896,2634.5,2634.4,9.693]
[1750092483224,0.1896,2634.5,2634.4,16.006]
[1750092483608,0.1896,2634.5,2634.4,19.80193076]
[1750092483809,0.2096,2634.9,2634.5,4.57723833]
[1750092484120,0.2096,2634.9,2634.7,3.79549328]
[1750092484323,0.2096,2634.9,2634.8,6.313]
[1750092484911,10.2096,2634.9,2634.8,6.311]
[1750092485301,0.2096,2634.9,2634.8,6.311]
[1750092485847,0.2096,2634.9,2634.5,3.79570618]
[1750092486146,0.1896,2634.6,2634.4,9.693]
[1750092486334,0.7634,2634.6,2634.2,1.67]
[1750092486535,3.98567485,2634.3,2634.2,1.67]
[1750092486829,13.98567485,2634.3,2634.2,6.311]
[1750092487028,3.98567485,2634.3,2634.2,6.311]
[1750092487632,0.1896,2634.3,2633.9,3.79664411]
[1750092487833,13.79600074,2634.4,2634.2,6.311]
[1750092488143,2.85166803,2634.3,2634.2,6.311]
[1750092488555,13.79585614,2634.5,2634.2,6.311]
[1750092489149,3.79595401,2634.4,2634.2,6.311]
[1750092489372,10.0,2634.0,2633.7,1.67]
[1750092489558,0.8268,2634.1,2633.7,5.46683682]
[1750092489717,0.8268,2634.1,2633.8,3.79672249]
[1750092490216,0.8268,2634.1,2633.7,5.46686748]
[1750092490217,0.1896,2633.8,2633.7,5.46686748]
[1750092490823,0.8268,2634.4,2634.2,6.306]
[1750092491074,0.1896,2634.3,2634.1,3.79628352]
[1750092491566,0.1896,2634.3,2634.0,3.79650721]
[1750092491567,0.1896,2634.3,2634.2,6.31]
[1750092491762,10.1896,2634.3,2633.9,0.1896]
[1750092491924,10.8268,2634.3,2633.8,1.671]
[1750092492122,0.1896,2634.0,2633.9,10.10565076]
[1750092492363,0.1896,2634.0,2633.8,1.671]
[1750092492564,0.1896,2634.0,2633.9,6.309]
[1750092493353,0.1896,2634.0,2633.9,10.10565135]
[1750092493931,0.1896,2634.0,2633.8,3.79671401]
[1750092494133,0.1896,2634.0,2633.9,6.306]
[1750092496187,0.1896,2634.0,2633.9,10.10265135]
[1750092496590,0.1896,2634.0,2633.9,6.306]
[1750092496777,0.1896,2634.0,2633.9,10.10265135]
[1750092497169,0.1896,2634.0,2633.9,6.306]
[1750092497496,0.1896,2634.0,2633.7,5.46786659]
[1750092497800,0.1896,2634.0,2633.8,6.301]
[1750092498649,0.1896,2634.0,2633.7,5.46785629]
[1750092498650,0.1896,2634.0,2633.7,1.671]
[1750092498853,3.98613578,2634.0,2633.8,6.3]
[1750092499654,0.1896,2634.0,2633.8,6.3]
[1750092499988,0.7723,2633.8,2633.5,1.671]
[1750092500195,0.7723,2633.8,2633.6,3.79699541]
[1750092500196,0.1896,2633.7,2633.6,3.79699541]
[1750092500489,0.7723,2633.8,2633.6,6.298]
[1750092501406,0.7723,2633.8,2633.7,6.297]
[1750092501788,4.5690955,2633.8,2633.7,6.297]
[1750092502108,0.90686915,2634.0,2633.7,7.7294]
[1750092502309,0.02,2634.9,2634.6,4.6208426]
[1750092502469,0.02,2634.9,2634.8,3.79535448]
[1750092502908,0.8092,2634.9,2634.8,6.355]
[1750092503103,0.8092,2634.9,2634.8,6.357]
[1750092504100,0.1896,2634.8,2634.5,3.79577611]
[1750092504301,0.1896,2634.8,2634.7,3.79549853]
[1750092504671,0.1896,2634.8,2634.7,6.354]
[1750092505881,0.1896,2634.8,2634.4,3.79586218]
[1750092506083,0.1896,2634.7,2634.5,11.81277937]
[1750092507417,0.1896,2634.7,2634.6,3.7956426]
[1750092508598,0.02,2634.9,2634.8,3.79535448]
[1750092508942,0.2096,2634.9,2634.8,10.18230604]
[1750092509229,0.2096,2634.9,2634.8,10.14435448]
[1750092509230,0.02,2634.9,2634.8,10.14435448]
[1750092509432,0.02,2634.9,2634.8,11.72157366]
[1750092510329,0.02,2634.9,2634.8,1.663]
[1750092510532,0.2096,2634.9,2634.5,3.98535564]
[1750092510753,0.1896,2634.7,2634.6,10.14462058]
[1750092510956,0.1896,2634.7,2634.6,6.349]
[1750092511948,0.1896,2634.7,2634.6,6.351]
[1750092512531,3.98509936,2634.7,2634.2,3.9857104]
[1750092512731,0.1896,2634.5,2634.3,11.80696988]
[1750092512940,0.1896,2634.5,2634.3,8.011]
[1750092513157,0.1896,2634.5,2634.4,3.79593076]
[1750092513335,0.1896,2634.5,2634.3,8.011]
[1750092513664,0.1896,2634.5,2634.3,11.80703197]
[1750092514254,0.1896,2634.5,2634.3,8.011]
[1750092514644,0.1896,2634.5,2634.3,11.80703592]
[1750092514853,0.1896,2634.5,2634.3,8.011]
[1750092515353,0.1896,2634.5,2634.4,3.79593076]
[1750092515527,0.1896,2634.5,2634.3,3.79599552]
[1750092515857,0.1896,2634.5,2634.4,8.005]
[1750092516424,0.1896,2634.5,2634.1,0.7939]
[1750092516745,0.1896,2634.2,2633.9,0.7529]
[1750092516959,0.1896,2634.2,2633.6,1.663]
[1750092516960,3.79671531,2633.9,2633.6,1.663]
[1750092517166,0.1896,2633.7,2633.6,1.663]
[1750092517381,0.1896,2633.7,2633.6,8.008]
[1750092518155,0.1896,2633.7,2633.6,11.80508383]
[1750092518773,1.69669825,2634.3,2633.6,9.64351897]
[1750092518931,0.1896,2633.9,2633.8,3.7967955]
[1750092520173,0.1896,2633.9,2633.5,0.1896]
[1750092520329,10.0,2634.1,2633.6,1.663]
[1750092520532,0.1896,2633.8,2633.7,10.13884478]
[1750092520730,13.79622886,2634.2,2633.7,10.13884478]
[1750092520929,0.1896,2633.9,2633.7,10.13884478]
[1750092522956,0.1896,2633.9,2633.7,6.342]
[1750092523857,0.1896,2633.9,2633.8,6.341]
[1750092524063,0.1896,2633.9,2633.8,10.1377955]
[1750092525374,10.0,2634.5,2634.1,3.79623348]
[1750092525570,10.0,2634.5,2634.2,6.337]
[1750092525984,10.0,2634.5,2634.2,10.13310358]
[1750092526191,10.0,2634.5,2634.2,6.337]
[1750092526192,0.1896,2634.3,2634.2,6.337]
[1750092526687,0.1896,2634.3,2634.2,8.0]
[1750092529277,0.1896,2634.3,2634.2,11.79621896]
[1750092529484,0.1896,2634.3,2634.2,8.0]
[1750092530691,0.1896,2634.3,2634.2,6.327]
[1750092534003,0.1896,2634.3,2634.2,10.12321896]
[1750092534369,0.7508,2634.8,2634.4,3.79590674]
[1750092534571,0.1896,2634.5,2634.3,4.55679116]
[1750092534796,0.1896,2634.5,2634.4,6.319]
[1750092535667,0.1896,2634.5,2634.2,3.79621039]
[1750092536087,0.1896,2634.5,2634.3,8.013]
[1750092536487,0.1896,2634.5,2634.3,11.80906804]
[1750092537113,0.1896,2634.5,2634.4,3.79593076]
[1750092537408,10.92791562,2634.9,2634.4,3.83388791]
[1750092537572,0.1896,2634.6,2634.1,0.9504]
[1750092537775,0.1896,2634.6,2634.5,1.68]
[1750092537994,0.1896,2634.6,2634.5,8.009]
[1750092540405,0.1896,2634.6,2634.5,11.80478667]
[1750092540735,0.02,2634.9,2634.5,14.13205721]
[1750092540933,0.1896,2634.8,2634.6,3.7955352]
[1750092541098,0.1896,2634.8,2634.7,6.322]
[1750092541520,0.1896,2634.8,2634.7,10.11749853]
[1750092542417,0.02,2634.9,2634.8,4.59425448]
[1750092543732,0.8024,2634.9,2634.8,1.679]
[1750092543920,0.8024,2634.9,2634.8,8.003]
[1750092544289,0.02,2634.9,2634.8,11.79835448]
[1750092544694,0.02,2634.9,2634.8,13.44010552]
[1750092544930,0.02,2634.9,2634.8,13.62970552]
[1750092545731,0.02,2634.9,2634.8,3.79535448]
[1750092545955,0.02,2634.9,2634.8,11.80035448]
[1750092549880,0.02,2634.9,2634.8,11.98995448]
[1750092550389,0.02,2634.9,2634.8,5.66395448]
[1750092550522,0.02,2634.9,2634.8,11.78935448]
[1750092551346,0.02,2634.9,2634.7,4.61915741]
[1750092551543,0.02,2634.9,2634.8,11.78835448]
[1750092553185,0.02,2634.9,2634.8,7.993]
[1750092553551,0.02,2634.9,2634.8,11.78835448]
[1750092553879,0.02,2634.9,2634.8,3.79535448]
[1750092554051,0.02,2634.9,2634.8,11.78335448]
[1750092554252,0.02,2634.9,2634.8,11.78235448]
[1750092554451,0.02,2634.9,2634.8,3.79535448]
[1750092554654,0.02,2634.9,2634.8,11.78135448]
[1750092555189,0.02,2634.9,2634.8,3.79535448]
[1750092555387,0.02,2634.9,2634.8,11.77935448]
[1750092555755,0.02,2634.9,2634.8,6.14999967]
[1750092556295,0.02,2634.9,2634.8,13.35479967]
[1750092557486,0.02,2634.9,2634.8,14.18269967]
[1750092557699,0.02,2634.9,2634.8,14.37229967]
[1750092558266,0.8227,2634.9,2634.8,0.1896]
[1750092558470,0.8227,2634.9,2634.1,0.8185]
[1750092558471,13.79541288,2634.8,2634.5,6.32]
[1750092558711,0.8227,2634.9,2634.6,3.79557821]
[1750092559000,0.8227,2634.9,2634.8,3.79535448]
[1750092559001,0.02,2634.9,2634.8,3.79535448]
[1750092559666,0.02,2634.9,2634.8,11.83830287]
[1750092559998,0.02,2634.9,2634.8,11.80035448]
[1750092564532,0.02,2634.9,2634.8,12.57525448]
[1750092564827,0.02,2634.9,2634.8,15.99392379]
[1750092565380,0.02,2634.9,2634.8,25.99392379]
[1750092568504,0.02,2634.9,2634.8,26.18352379]
[1750092570289,0.773,2636.5,2635.8,5.11681456]
[1750092570489,0.773,2636.5,2635.8,13.12081456]
[1750092570690,0.773,2636.5,2635.8,15.90478242]
[1750092571014,0.793,2636.9,2635.8,15.90478242]
[1750092572393,3.79254335,2636.8,2635.8,7.90078242]
[1750092572579,3.79254335,2636.8,2635.8,15.90678242]
[1750092573029,0.793,2636.9,2635.8,15.90678242]
[1750092573229,4.58534619,2636.9,2635.8,15.90678242]
[1750092573636,0.793,2636.9,2635.8,15.90678242]
[1750092573841,14.58536815,2636.9,2635.8,15.90678242]
[1750092574286,3.79249611,2636.8,2635.8,15.90678242]
[1750092574675,0.793,2636.9,2635.8,15.90678242]
[1750092574938,0.793,2636.9,2635.8,25.90678242]
[1750092578796,0.793,2636.9,2635.8,17.90078242]
[1750092578993,0.793,2636.9,2635.8,25.89678242]
[1750092579213,4.58541205,2636.9,2635.8,25.89678242]
[1750092579515,4.58535949,2636.9,2635.8,25.89478242]
[1750092579728,4.58535949,2636.9,2635.8,25.89378242]
[1750092580295,3.79270138,2636.7,2635.8,18.09038242]
[1750092580535,0.1896,2636.6,2635.8,26.08138242]
[1750092580708,0.8027,2636.5,2635.8,26.08138242]
[1750092580908,0.8027,2636.5,2635.8,18.09038242]
[1750092581105,0.8027,2636.5,2635.8,26.08138242]
[1750092581434,0.8027,2636.5,2635.8,18.09038242]
[1750092581619,0.8027,2636.5,2635.8,26.08138242]
[1750092581933,0.8027,2636.5,2635.8,26.08038242]
[1750092582304,0.8027,2636.5,2635.8,26.07838242]
[1750092582509,0.8027,2636.5,2635.8,16.07838242]
[1750092583228,0.1896,2636.4,2635.8,15.53038242]
[1750092583835,0.1896,2636.4,2635.8,6.76748242]
[1750092584134,0.1896,2636.4,2635.8,11.97151456]
[1750092584433,0.1896,2636.4,2635.8,12.52151456]
[1750092585693,0.1896,2636.4,2635.8,12.52051456]
[1750092585898,0.1896,2636.4,2635.8,4.53351456]
[1750092586097,0.1896,2636.4,2635.8,12.52051456]
[1750092586331,0.1896,2636.4,2635.8,15.24445242]
[1750092586737,3.98266729,2636.4,2635.8,11.96951456]
[1750092587835,0.1896,2636.4,2635.8,11.96951456]
[1750092588206,3.98265866,2636.4,2635.8,11.96951456]
[1750092588647,13.79295018,2636.5,2635.8,11.77891456]
[1750092588847,0.7875,2636.1,2635.8,11.77891456]
[1750092589438,0.7875,2636.1,2635.8,5.47191456]
[1750092589645,0.7875,2636.1,2635.8,11.77591456]
[1750092590353,0.1896,2636.2,2635.8,11.77591456]
[1750092590757,0.9611,2636.4,2635.8,11.96551456]
[1750092590979,0.9611,2636.4,2635.8,14.63395241]
[1750092591323,0.9611,2636.4,2635.8,15.42125241]
[1750092596595,0.1896,2636.4,2635.8,15.42125241]
[1750092596793,0.1896,2636.4,2635.8,15.97125241]
[1750092597090,0.1896,2636.4,2635.8,23.66636388]
[1750092599589,0.1896,2636.4,2635.8,17.36236388]
[1750092599892,0.1896,2636.4,2635.8,23.65236388]
[1750092600888,0.1896,2636.4,2635.8,23.10236388]
[1750092601068,0.1896,2636.4,2635.8,22.31406388]
[1750092601276,0.1896,2636.4,2635.8,14.61895241]
[1750092601719,5.48524,2636.6,2635.8,10.08391456]
[1750092601720,0.7696,2636.1,2635.8,10.08391456]
[1750092602017,0.7696,2635.8,2635.4,8.019]
[1750092602159,0.9592,2635.8,2635.4,3.7944575]
[1750092602373,4.75313725,2635.8,2635.3,3.9841308]
[1750092602563,6.37931152,2635.8,2635.4,6.296]
[1750092603007,3.79438202,2635.5,2635.2,1.666]
[1750092603212,0.1896,2635.3,2635.2,1.666]
[1750092603380,0.1896,2635.3,2635.2,7.96]
[1750092603988,3.98434066,2635.3,2634.8,1.666]
[1750092604317,3.79492376,2635.1,2634.9,6.295]
[1750092604471,0.7696,2635.2,2635.0,7.69511147]
[1750092604669,0.1896,2635.4,2635.3,3.79459791]
[1750092604870,0.1896,2635.4,2635.3,6.33593998]
[1750092605105,0.1896,2635.4,2635.3,6.299]
[1750092605613,0.1896,2635.4,2635.3,10.09363438]
[1750092606025,0.1896,2635.4,2635.3,11.64908406]
[1750092606182,0.1896,2635.8,2635.4,0.8263]
[1750092606504,0.1896,2635.8,2635.7,3.7940585]
[1750092606712,0.1896,2635.8,2635.7,10.0950585]
[1750092607389,0.1896,2635.8,2635.7,11.48398237]
[1750092608011,0.02,2635.9,2635.8,3.79391456]
[1750092608171,0.02,2635.9,2635.8,5.49784577]
[1750092609708,0.02,2635.9,2635.8,6.27061456]
[1750092610802,0.02,2635.9,2635.8,5.45991456]
[1750092611370,0.02,2635.9,2635.7,5.18289195]
[1750092611690,0.02,2635.9,2635.8,10.1288479]
[1750092611902,0.02,2635.9,2635.8,10.09091456]
[1750092612703,0.02,2635.9,2635.8,11.75191456]
[1750092613575,0.02,2635.9,2635.8,3.79391456]
[1750092613783,0.02,2635.9,2635.8,10.08491456]
[1750092614013,0.02,2635.9,2635.8,11.63941127]
[1750092616319,0.02,2635.9,2635.8,11.63441127]
[1750092622518,0.02,2635.9,2635.8,13.01321127]
[1750092622820,0.02,2635.9,2635.8,13.20281127]
[1750092623818,0.02,2635.9,2635.8,13.19281127]
[1750092625721,0.02,2635.9,2635.8,6.36681127]
[1750092626023,0.02,2635.9,2635.8,5.44591456]
[1750092626250,0.02,2635.9,2635.8,11.71891456]
[1750092626944,0.02,2635.9,2635.8,3.79391456]
[1750092627140,0.02,2635.9,2635.8,11.71991456]
[1750092630754,0.02,2635.9,2635.8,5.44591456]
[1750092630930,0.02,2635.9,2635.8,11.71691456]
[1750092631531,0.02,2635.9,2635.8,3.79391456]
[1750092631868,0.02,2635.9,2635.8,11.71391456]
[1750092633141,0.02,2635.9,2635.8,14.56581127]
[1750092633347,0.02,2635.9,2635.8,14.75541127]
[1750092640805,0.02,2635.9,2635.8,24.75541127]
[1750092641597,0.02,2636.9,2636.8,3.79247572]
[1750092641773,0.02,2636.9,2636.8,11.71147572]
[1750092641977,0.02,2636.9,2636.8,14.1123973]
[1750092644308,0.02,2636.9,2636.8,14.6623973]
[1750092644806,0.02,2636.9,2636.8,14.8519973]
[1750092645775,0.02,2636.9,2636.8,24.8519973]
[1750092646083,0.02,2636.9,2636.8,25.6129973]
[1750092646495,0.02,2636.9,2636.8,33.6279973]
[1750092646878,0.02,2636.9,2636.8,33.4383973]
[1750092647487,0.02,2636.9,2636.8,33.4373973]
[1750092649037,0.02,2636.9,2636.8,41.1343448]
[1750092649545,0.8268,2637.9,2637.8,3.79103798]
[1750092649688,0.8268,2637.9,2637.8,10.05703798]
[1750092650698,0.8268,2637.9,2637.8,10.05803798]
[1750092650904,0.8268,2637.9,2637.8,10.05703798]
[1750092651111,0.8268,2637.9,2637.8,3.79103798]
[1750092651324,0.8268,2637.9,2637.8,10.05703798]
[1750092651680,0.8268,2637.9,2637.8,6.266]
[1750092652386,0.8268,2637.9,2637.8,10.05703798]
[1750092652723,0.02,2637.9,2637.8,10.05703798]
[1750092653316,0.02,2637.9,2637.8,3.79103798]
[1750092653526,0.02,2637.9,2637.8,12.50416147]
[1750092653683,0.02,2637.9,2637.8,12.46625745]
[1750092655328,0.02,2637.9,2637.8,20.71320495]
[1750092655922,0.02,2637.9,2637.8,20.90200495]
[1750092657335,0.02,2637.9,2637.8,21.72010495]
[1750092657530,0.02,2637.9,2637.8,31.72010495]
[1750092660402,0.02,2637.9,2637.8,39.41705245]
[1750092660610,0.02,2638.9,2638.8,3.78960133]
[1750092660809,0.02,2638.9,2638.8,12.87440923]
[1750092661038,0.02,2638.9,2638.8,13.3865225]
[1750092661402,0.02,2638.9,2638.8,5.4765225]
[1750092661602,0.02,2638.9,2638.8,13.3865225]
[1750092662212,0.02,2638.9,2638.8,5.4765225]
[1750092662419,0.02,2638.9,2638.8,13.3865225]
[1750092663652,0.02,2638.9,2638.8,12.8355225]
[1750092664755,0.02,2638.9,2638.8,13.22330335]
[1750092664964,0.02,2638.9,2638.8,0.38778085]
[1750092665120,3.78985286,2638.7,2638.2,11.80145934]
[1750092665455,0.1888,2638.5,2638.2,11.80138511]
[1750092665655,0.1888,2638.5,2638.2,9.658]
[1750092665953,0.1888,2638.5,2638.3,6.263]
[1750092666255,4.60499599,2638.6,2638.2,9.658]
[1750092666256,4.60504029,2638.6,2638.4,6.262]
[1750092666421,4.60504029,2638.6,2638.5,6.262]
[1750092666956,0.8151,2638.6,2638.5,6.262]
[1750092667521,0.1888,2638.6,2638.5,6.262]
[1750092667741,0.02,2638.9,2638.7,3.78963968]
[1750092668055,0.02,2638.9,2638.8,6.261]
[1750092668256,0.1888,2638.7,2638.6,3.78981165]
[1750092668429,0.1888,2638.7,2638.6,11.73570491]
[1750092668629,0.9469,2638.7,2638.3,0.1888]
[1750092668830,0.1888,2638.5,2638.2,11.80139358]
[1750092669048,0.1888,2638.5,2638.3,7.918]
[1750092669230,3.97883221,2638.5,2638.4,6.271]
[1750092669437,0.1888,2638.5,2638.4,6.271]
[1750092669752,0.1888,2638.5,2638.3,1.647]
[1750092669956,0.1888,2638.5,2638.4,6.27]
[1750092672141,0.1888,2638.5,2638.4,10.09807531]
[1750092672491,0.1888,2638.5,2638.4,12.03578339]
[1750092672644,0.1888,2638.5,2638.4,13.68178339]
[1750092675446,0.777,2638.9,2638.7,3.78961567]
[1750092675782,0.02,2638.9,2638.8,10.05360133]
[1750092676780,0.02,2638.9,2638.8,7.912]
[1750092678083,0.02,2638.9,2638.8,11.70160133]
[1750092678385,0.02,2638.9,2638.8,7.912]
[1750092678587,0.02,2638.9,2638.8,11.70160133]
[1750092680487,0.02,2638.9,2638.5,0.55]
[1750092680688,0.02,2638.9,2638.8,5.43560133]
[1750092680895,0.02,2638.9,2638.8,11.69660133]
[1750092682996,0.02,2638.9,2638.8,12.24660133]
[1750092683153,0.02,2638.9,2638.8,12.43540133]
[1750092687267,0.02,2638.9,2638.8,4.52840133]
[1750092687468,0.02,2638.9,2638.8,8.3975063]
[1750092687697,0.02,2638.9,2638.8,2.22310497]
[1750092687995,0.1888,2638.8,2638.7,3.82756807]
[1750092688159,0.1888,2638.8,2638.7,10.08856807]
[1750092688358,0.1888,2638.8,2638.7,10.05067603]
[1750092688592,0.1888,2638.8,2638.7,11.67316934]
[1750092689199,0.02,2638.9,2638.8,3.78960133]
[1750092690390,0.02,2638.9,2638.8,3.82749151]
[1750092690787,0.02,2638.9,2638.8,0.03789018]
[1750092690987,0.02,2638.9,2638.8,3.82749151]
[1750092691501,0.02,2638.9,2638.7,7.88349331]
[1750092691699,0.2088,2638.9,2638.7,7.88349331]
[1750092691885,0.2088,2638.9,2638.8,6.26]
[1750092693102,0.2088,2638.9,2638.7,1.646]
[1750092693308,0.2088,2638.9,2638.8,6.261]
[1750092693609,0.2088,2638.9,2638.7,1.646]
[1750092693769,3.99826472,2638.9,2638.8,6.26]
[1750092693970,0.2088,2638.9,2638.8,6.26]
[1750092697219,0.2088,2638.9,2638.7,1.646]
[1750092697528,0.2088,2638.9,2638.8,6.26]
[1750092701388,0.2088,2638.9,2638.6,3.78987003]
[1750092702056,0.2088,2638.9,2638.7,0.03789257]
[1750092702187,0.2088,2638.9,2638.8,3.78960133]
[1750092702519,0.02,2638.9,2638.7,0.1888]
[1750092702686,0.02,2638.9,2638.7,1.646]
[1750092702884,0.02,2638.9,2638.8,6.26]
[1750092704097,0.02,2638.9,2638.8,10.08749277]
[1750092704304,0.02,2638.9,2638.8,11.60191729]
[1750092705631,0.02,2638.9,2638.8,12.40711729]
[1750092707433,0.02,2638.9,2638.8,5.34191729]
[1750092707642,0.8394,2638.9,2638.8,6.26]
[1750092708537,4.62885772,2638.9,2638.8,6.26]
[1750092708746,0.8394,2638.9,2638.8,6.26]
[1750092709113,0.02,2638.9,2638.8,6.26]
[1750092710340,3.80945772,2638.9,2638.3,4.57159749]
[1750092710526,0.02,2638.9,2638.5,3.79001454]
[1750092710731,0.02,2638.9,2638.6,3.78987828]
[1750092710932,0.02,2638.9,2638.7,6.26]
[1750092711246,0.02,2638.9,2638.8,3.78960133]
[1750092711471,0.02,2638.9,2638.7,7.26498783]
[1750092711618,0.02,2638.9,2638.8,3.78960133]
[1750092711821,0.02,2638.9,2638.8,5.43560133]
[1750092714199,0.02,2638.9,2638.8,5.47349217]
[1750092714399,0.02,2638.9,2638.8,7.9726614]
[1750092714611,0.02,2638.9,2638.8,7.93477056]
[1750092715046,0.02,2638.9,2638.8,7.97265889]